Cogmind - Beta 12 @@@ ROGUE MODE // 2023.07.12 @ 04:57:45 Player: hansy Result: Destroyed by G-67 Veteran with Field Laser Performance ------------- Evolutions (4) 2000 Regions Visited (11) 2200 Robots Destroyed (111) 555 Value Destroyed (4849) 4849 Prototype IDs (28) 560 Alien Tech Used (0) 0 Bonus (2851) 2851 TOTAL SCORE: 13015 Bonus ------- High Alert Combat Kills 362 Follower Combat Kills 543 Entered Garrisons 400 Used RIF Installer 1000 Entered DSFs 500 Aligned with FarCom 300 Friendly Fire -254 Cogmind --------- Core Integrity 0/850 Matter 192/300 Energy 100/100 System Corruption 7% Temperature Cool (30) Movement Core (50) Location -6/Factory Parts ------- > --- POWER (2) -------- (None) > --- PROPULSION (6) --- (None) > --- UTILITY (5) ------ Advanced Heat Sink Machine Analyzer Hacking Suite > --- WEAPON (2) ------- (None) > --- INVENTORY (5) ---- Authchip [Propulsion] Relay Coupler [NC] (31) Relay Coupler [Grunt] (31) Cooled Plasma Cannon Peak State ------------ > --- POWER ------------ Light Antimatter Reactor Light Antimatter Reactor > --- PROPULSION ------- Carbon-fiber Leg Carbon-fiber Leg Carbon-fiber Leg Carbon-fiber Leg Carbon-fiber Leg Carbon-fiber Leg > --- UTILITY ---------- Medium Storage Unit Machine Analyzer Improved Phase Shifter Focal Shield Hacking Suite > --- WEAPON ----------- Cooled Plasma Cannon Coil Gun > --- INVENTORY -------- Advanced Heat Sink Improved Phase Shifter Authchip [Propulsion] Relay Coupler [NC] Relay Coupler [Grunt] YOLO Cannon Coil Gun KE Penetrator Improved Datajack [Rating: 67] Favorites ----------- Power Light Ion Engine Engine Light Ion Engine Power Core Light Nuclear Core Reactor Light Antimatter Reactor Propulsion Aerolev Unit Leg Carbon-fiber Leg Hover Unit Aerolev Unit Utility Machine Analyzer Device Improved Heat Sink Storage Medium Storage Unit Processor Machine Analyzer Hackware Hacking Suite Weapon Heavy Phase Cannon Energy Gun Improved Medium Laser Energy Cannon Heavy Phase Cannon Ballistic Gun Coil Gun Ballistic Cannon Light Cannon Launcher Mini Grenade Launcher Piercing Weapon Lance Special Melee Weapon Improved Datajack Build | -11 -10 -10 -10 -9 -8 -8 -7 -7 -6 -6 -6 ------- Run | Jun Mat Min Exi Min Mat Gar Fac DSF Fac Gar Fac Slots Evolved 8 | . . . . . 4 . 2 . 2 . . Power 1 | . . . . . . . 1 . . . . Propulsion 4 | . . . . . 2 . . . 2 . . Utility 3 | . . . . . 2 . 1 . . . . Weapon . | . . . . . . . . . . . . Parts Attached 103 | 7 5 2 1 1 20 19 3 2 . 32 11 Power 22 | 1 1 1 . . 3 2 1 2 . 10 1 Engine 12 | 1 1 1 . . 2 1 1 1 . 4 . Core 7 | . . . . . 1 1 . 1 . 4 . Reactor 3 | . . . . . . . . . . 2 1 Propulsion 32 | 2 2 1 . . 6 11 . . . 9 1 Treads . | . . . . . . . . . . . . Leg 22 | 2 2 1 . . . 7 . . . 9 1 Wheel . | . . . . . . . . . . . . Hover 10 | . . . . . 6 4 . . . . . Flight . | . . . . . . . . . . . . Utility 19 | 2 . . . 1 4 1 1 . . 6 4 Device 12 | 1 . . . . . 1 . . . 6 4 Storage 3 | 1 . . . . 2 . . . . . . Processor 3 | . . . . 1 2 . . . . . . Hackware 1 | . . . . . . . 1 . . . . Protection . | . . . . . . . . . . . . Artifact . | . . . . . . . . . . . . Weapon 30 | 2 2 . 1 . 7 5 1 . . 7 5 Energy Gun 7 | . . . 1 . 3 . . . . 3 . Energy Cannon 7 | . . . . . 1 2 1 . . 1 2 Ballistic Gun 8 | 2 1 . . . . . . . . 3 2 Ballistic Cannon 3 | . 1 . . . 2 . . . . . . Launcher 2 | . . . . . . 2 . . . . . Special Weapon . | . . . . . . . . . . . . Impact Weapon . | . . . . . . . . . . . . Slashing Weapon . | . . . . . . . . . . . . Piercing Weapon 1 | . . . . . . 1 . . . . . Special Melee Weapon 2 | . . . . . 1 . . . . . 1 Unidentified Prototypes 5 | . . . . . 4 . . . . . 1 Corrupted Parts 1 | . . . . . . . . . . 1 . System Corruption 1 | . . . . . . . . . . 1 . Parts Lost 55 | . 4 . . . 6 9 . 1 . 21 14 Power 16 | . 2 . . . 4 1 . 1 . 6 2 Propulsion 20 | . . . . . . 6 . . . 7 7 Utility 6 | . . . . . . . . . . 3 3 Weapon 13 | . 2 . . . 2 2 . . . 5 2 Highest Loss Streak 11 | . 2 . . . 3 3 . 1 . 11 9 To Critical Strikes . | . . . . . . . . . . . . Average Slot Usage (%) 91 | . 100 98 99 90 92 90 100 92 80 85 91 Engine 5 | . 14 12 14 14 5 2 15 6 6 4 . Core 2 | . . . . . 1 1 . 1 . 5 . Reactor 1 | . . . . . . . . . . 1 12 Leg 20 | . 28 28 28 28 2 19 7 7 6 23 33 Hover 10 | . . . . . 32 14 23 23 20 5 . Device 8 | . 14 14 13 . . 6 7 7 6 11 12 Storage 8 | . 14 14 14 14 10 9 7 7 6 6 5 Processor 11 | . . . . 4 23 20 15 15 13 6 6 Hackware 2 | . . . . . . . 7 7 6 6 6 Energy Gun 4 | . . . 7 14 8 7 . . . 5 . Energy Cannon 3 | . . . . . 2 5 9 15 13 4 . Ballistic Gun 4 | . 21 14 6 . . . . . . 2 12 Ballistic Cannon 2 | . 6 14 14 14 5 . . . . . . Launcher 1 | . . . . . . 3 5 . . . . Naked Turns . | . . . . . . . . . . . . Heaviest Build 58 | 15 15 13 14 13 22 25 37 41 40 58 47 Greatest Support 90 | 20 20 20 20 20 32 40 24 24 24 90 90 Greatest Overweight (x) 6 | . . . . . 5 5 1 1 1 3 6 Average Overweight (x) . | . . . . . . . 1 1 1 . . Largest Inventory Capacity 10 | 8 8 8 8 8 10 10 10 10 10 10 10 Average Capacity 9 | 7 8 8 8 8 8 10 10 10 10 10 9 Most Carried 10 | 5 8 8 8 8 10 10 9 10 10 10 10 Average Carried 8 | 2 4 6 7 7 7 9 8 9 10 8 9 Final Capacity 10 | 8 8 8 8 8 10 10 10 10 10 10 5 Final Carried 10 | 2 7 7 8 7 10 10 9 10 10 10 4 Class Distribution -------------------- 52% | Scavenger-Mutant 14% | Scavenger-Skirmisher 14% | Mutant 7% | Skirmisher 5% | Scavenger-Scout 5% | Scout Dominant Class ---------------- Mutant | -10/Materials Scavenger-Mutant | -10/Mines Scavenger-Mutant | -10/Exiles Mutant | -9/Mines Scout | -8/Materials Scavenger-Mutant | -8/Garrison Scavenger-Mutant | -7/Factory Scavenger-Skirmisher | -7/DSF Scavenger-Skirmisher | -6/Factory Scavenger-Mutant | -6/Garrison Scavenger-Mutant | -6/Factory Resources | -11 -10 -10 -10 -9 -8 -8 -7 -7 -6 -6 -6 ----------- Run | Jun Mat Min Exi Min Mat Gar Fac DSF Fac Gar Fac Matter Collected 2037 | 306 294 92 55 . 433 324 . 45 . 334 154 Remotely . | . . . . . . . . . . . . Salvage Created 4191 | 94 344 95 . 40 634 1050 . 266 . 1035 633 Parts 202 | 7 20 11 . 7 27 44 . 14 . 39 33 Haulers Intercepted 5 | . 1 . . . 3 . . 1 . . . Recyclers Shooed 2 | 1 . . . . . . . . . . 1 Parts Field Recycled . | . . . . . . . . . . . . Retrieved Matter . | . . . . . . . . . . . . Parts Self-Destructed . | . . . . . . . . . . . . Prevented . | . . . . . . . . . . . . Kills | -11 -10 -10 -10 -9 -8 -8 -7 -7 -6 -6 -6 ------- Run | Jun Mat Min Exi Min Mat Gar Fac DSF Fac Gar Fac Combat Hostiles Destroyed 90 | . 11 7 . 4 10 24 . 3 . 23 8 Guns 42 | . 9 3 . 1 2 12 . . . 11 4 Cannons 36 | . 2 4 . 3 7 6 . 3 . 10 1 AOE 8 | . . . . . . 6 . . . . 2 Classes Destroyed 14 | 2 4 . . . 2 3 . 1 . . 2 Worker 2 | . . . . . . . . . . . 2 Builder 3 | . . . . . . . . . . . 3 Tunneler 1 | 1 . . . . . . . . . . . Hauler 5 | . 1 . . . 3 . . 1 . . . Recycler 2 | 1 . . . . . . . . . . 1 Operator 1 | . 1 . . . . . . . . . . Watcher 5 | . . . . . 4 1 . . . . . Swarmer 38 | . 6 6 . 4 2 7 . . . 12 1 Saboteur 2 | . . . . . . 2 . . . . . Grunt 43 | . 5 1 . . 7 13 . 3 . 9 5 Brawler 3 | . . . . . . 1 . . . . 2 Sentry 2 | . . . . . 1 . . . . 1 . Specialist 1 | . . . . . . . . 1 . . . Hunter 3 | . . . . . . 2 . . . 1 . Best Kill Streak 8 | 2 6 3 . 4 4 4 . 2 . 4 8 Combat Bots Only 6 | . 6 3 . 4 4 4 . 2 . 4 4 Max Kills in Single Turn 5 | 1 1 1 . 1 1 4 . 1 . 1 5 Gunslinging . | . . . . . . . . . . . . Exploded 4 | . . . . . . 4 . . . . 2 Melee . | . . . . . . . . . . . . Uniques/NPCs Destroyed . | . . . . . . . . . . . . Combat | -11 -10 -10 -10 -9 -8 -8 -7 -7 -6 -6 -6 -------- Run | Jun Mat Min Exi Min Mat Gar Fac DSF Fac Gar Fac Damage Taken 7391 | . 570 147 . 97 896 1258 . 139 . 2639 1645 Core 1467 | . 63 7 . 16 173 310 . 32 . 354 512 Absorbed by Shields 196 | . . . . . . 29 . . . 167 . Regen/Repaired (Parts) 55 | . . . . . 55 . . . . . . Core Remaining (%) 68 | 100 . . . 65 . 12 . 95 . . . Volleys Fired 360 | 6 43 21 . 6 55 103 . 12 . 88 26 Largest 2 | 2 2 2 . 2 2 2 . 2 . 2 2 Hottest 180 | 40 55 55 . 75 124 124 . 180 . 180 100 Shots Fired 634 | 12 85 43 . 12 104 147 . 24 . 159 48 Gun 378 | 12 75 21 . 6 49 81 . . . 88 46 Cannon 247 | . 10 22 . 6 55 57 . 24 . 71 2 Launcher 9 | . . . . . . 9 . . . . . Special . | . . . . . . . . . . . . Kinetic 261 | 12 85 43 . 6 47 . . . . 22 46 Thermal 318 | . . . . . 25 138 . 24 . 129 2 Explosive 9 | . . . . . . 9 . . . . . Electromagnetic 46 | . . . . 6 32 . . . . 8 . Robot Hit Streak 14 | 6 12 5 . 3 9 14 . 7 . 11 6 Robot Miss Streak 6 | 2 4 5 . 2 6 4 . 3 . 4 2 Penetration Max 2 | . . . . . . . . . . . 2 Secondary Targets 4 | . . . . . . 2 . . . 2 . Max Gunslinging Chain 1 | . . . . . . 1 . . . 1 . Shots Hit Robots 402 | 8 55 21 . 6 77 95 . 15 . 94 31 Core Hits 193 | 3 19 12 . 4 40 48 . 4 . 42 21 Critical Kills 4 | . . . . . . 1 . 1 . 1 1 Critical Parts Destroyed 2 | . . . . . . . . . . . 2 Critical Strikes 15 | . . 1 . . 2 7 . 1 . 1 3 Burn 7 | . . . . . 1 6 . . . . . Meltdown 4 | . . . . . . 1 . 1 . 1 1 Destroy 2 | . . . . . . . . . . . 2 Blast 2 | . . 1 . . 1 . . . . . . Melee Attacks 1 | . . . . . 1 . . . . . . Impact . | . . . . . . . . . . . . Slashing . | . . . . . . . . . . . . Piercing . | . . . . . . . . . . . . Sneak Attacks 1 | . . . . . 1 . . . . . . Combat Hostiles . | . . . . . . . . . . . . Follow-up Attacks . | . . . . . . . . . . . . Damage Inflicted 9703 | 101 796 259 . 92 1329 2156 . 627 . 2521 1822 Guns 4269 | 101 652 76 . 22 592 945 . . . 1014 867 Cannons 4286 | . 144 183 . 70 725 778 . 627 . 1501 258 Explosions 1130 | . . . . . . 433 . . . . 697 Melee . | . . . . . . . . . . . . Ramming 18 | . . . . . 12 . . . . 6 . Kinetic 2850 | 101 796 259 . 70 600 . . . . 157 867 Thermal 5874 | . . . . . 332 1723 . 627 . 2237 955 Explosive 433 | . . . . . . 433 . . . . . Electromagnetic 528 | . . . . 22 385 . . . . 121 . Impact . | . . . . . . . . . . . . Slashing . | . . . . . . . . . . . . Piercing . | . . . . . . . . . . . . Highest Corruption 7 | . 1 1 1 1 4 4 . . . 1 7 Average Corruption 2 | . 1 1 1 1 4 4 . . . 1 2 Corruption Purged . | . . . . . . . . . . . . Corruption Blocked . | . . . . . . . . . . . . Effects 56 | . 3 1 2 . 5 31 . . . 8 6 Message Errors 9 | . 1 . . . 1 6 . . . 1 . Matter Fused 15 | . 1 . 1 . . 9 . . . 3 1 Heat Flow Errors 10 | . 1 . 1 . 1 5 . . . 1 1 Energy Discharges 5 | . . . . . . 4 . . . 1 . Parts Fused 1 | . . . . . . . . . . . 1 Data Loss (minor) 4 | . . . . . . 4 . . . . . Data Loss (major) 1 | . . . . . . . . . . . 1 Misfires 3 | . . 1 . . 1 1 . . . . . Alerts 3 | . . . . . . 2 . . . 1 . Weapon Failures 5 | . . . . . 2 . . . . 1 2 Overload Shots . | . . . . . . . . . . . . Overflow Damage 175 | . . 13 . . . 29 . . . 46 87 Projectiles 166 | . . 13 . . . 29 . . . 46 78 Explosions 9 | . . . . . . . . . . . 9 Melee . | . . . . . . . . . . . . Knockbacks 25 | . . 2 . 2 21 . . . . . . Impact . | . . . . . . . . . . . . Kinetic 20 | . . 2 . 1 17 . . . . . . Secondary 5 | . . . . 1 4 . . . . . . Self-Inflicted Damage 87 | . . . . . 6 81 . . . . . Shots 2 | . . . . . . 2 . . . . . Rammed 1 | . . . . . 1 . . . . . . Targets Rammed 2 | . . . . . 1 . . . . 1 . Kicked 1 | . . . . . . . . . . 1 . Crushed . | . . . . . . . . . . . . Highest Temperature 391 | . 239 28 274 90 288 381 . 24 . 391 177 Average Temperature 94 | . 96 9 218 46 114 113 . 9 . 102 62 Received Heat Transfer 2434 | . 228 . . . 477 465 . 45 . 673 546 Effects 3 | . . . . . 1 2 . . . . . Energy Bleed 2 | . . . . . 1 1 . . . . . Short Circuit 1 | . . . . . . 1 . . . . . Siege Activations . | . . . . . . . . . . . . Robots Corrupted . | . . . . . . . . . . . . Combat Hostiles . | . . . . . . . . . . . . Parts Fried . | . . . . . . . . . . . . Impact Corruptions . | . . . . . . . . . . . . Robots Melted 6 | . . . . . 1 1 . 1 . 2 1 Combat Hostiles 4 | . . . . . 1 . . . . 2 1 Parts Melted 24 | . . . . . 5 9 . . . 8 2 Heat Transferred 8872 | . . . . . 740 3653 . 666 . 2933 880 Parts Sabotaged 1 | . . . . . . . . . . . 1 Parts Stolen . | . . . . . . . . . . . . Parts Stripped . | . . . . . . . . . . . . Power Chain Reactions . | . . . . . . . . . . . . Missiles Intercepted . | . . . . . . . . . . . . Alert | -11 -10 -10 -10 -9 -8 -8 -7 -7 -6 -6 -6 ------- Run | Jun Mat Min Exi Min Mat Gar Fac DSF Fac Gar Fac Peak Influence 1166 | 10 264 226 . 105 221 1166 611 575 301 1103 617 Initial 611 | . 6 21 . . 40 50 611 325 301 210 578 Average 427 | 5 164 167 . 87 86 570 478 465 301 532 563 Maximum Alert Level 4 | . 1 1 . . 1 4 2 2 1 4 2 Low Security (%) 25 | 100 46 48 . 100 87 19 . . . . . Level 1 21 | . 53 51 . . 12 14 . 25 100 26 1 Level 2 40 | . . . . . . 36 100 74 . 55 98 Level 3 9 | . . . . . . 18 . . . 14 . Level 4 4 | . . . . . . 10 . . . 3 . Level 5 . | . . . . . . . . . . . . High Security . | . . . . . . . . . . . . Max Security . | . . . . . . . . . . . . Sterilizations 1 | . . . . . . . . 1 . . . Squads Dispatched 12 | . 4 . . . 1 . 1 2 . . 4 Investigation 6 | . 3 . . . . . 1 . . . 2 Extermination . | . . . . . . . . . . . . Reinforcement 4 | . 1 . . . . . . 2 . . 1 Assault 1 | . . . . . . . . . . . 1 Garrison 1 | . . . . . 1 . . . . . . Intercept . | . . . . . . . . . . . . Searches Triggered . | . . . . . . . . . . . . Construction Impeded 1 | . . . . . . . . . . . 1 Haulers Reinforced . | . . . . . . . . . . . . Active Scanning Responses . | . . . . . . . . . . . . Cargo Convoy Interrupts . | . . . . . . . . . . . . Stealth | -11 -10 -10 -10 -9 -8 -8 -7 -7 -6 -6 -6 --------- Run | Jun Mat Min Exi Min Mat Gar Fac DSF Fac Gar Fac Distress Signals 3 | . . . . . 2 . . . . . 1 Communications Jammed . | . . . . . . . . . . . . Distress Signals . | . . . . . . . . . . . . Times Spotted 142 | . 14 9 . 3 20 32 . 8 . 33 23 Peak Tracking Total 13 | . 3 3 . 3 7 5 . 4 . 4 13 Tactical Retreats 10 | . . 2 . . 1 2 . . . 4 1 Traps | -11 -10 -10 -10 -9 -8 -8 -7 -7 -6 -6 -6 ------- Run | Jun Mat Min Exi Min Mat Gar Fac DSF Fac Gar Fac Traps Triggered 11 | . 1 . . . . 5 . . . 4 1 Indirectly . | . . . . . . . . . . . . Trap Hack Attempts 24 | . . . . . 13 . . . . . 11 Triggered 1 | . . . . . 1 . . . . . . Disarmed . | . . . . . . . . . . . . Reprogrammed 1 | . . . . . . . . . . . 1 Reused . | . . . . . . . . . . . . Traps Extracted . | . . . . . . . . . . . . Installed . | . . . . . . . . . . . . Triggered . | . . . . . . . . . . . . Machines | -11 -10 -10 -10 -9 -8 -8 -7 -7 -6 -6 -6 ---------- Run | Jun Mat Min Exi Min Mat Gar Fac DSF Fac Gar Fac Machines Disabled 11 | . . . . . 1 5 . . . 5 . Max in Single Turn 2 | . . . . . 1 1 . . . 2 . Garrison Relay 7 | . . . . . . 4 . . . 3 . Phase Generator 1 | . . . . . . . . . . 1 . Machines Repaired . | . . . . . . . . . . . . Machines Sabotaged . | . . . . . . . . . . . . Overloaded Fab Kills . | . . . . . . . . . . . . Hacking | -11 -10 -10 -10 -9 -8 -8 -7 -7 -6 -6 -6 --------- Run | Jun Mat Min Exi Min Mat Gar Fac DSF Fac Gar Fac Machines Accessed 22 | . 2 . 2 . 7 3 2 . 1 3 2 Terminals 17 | . 2 . . . 5 3 2 . . 3 2 Fabricators . | . . . . . . . . . . . . Repair Stations 1 | . . . . . 1 . . . . . . Recycling Units . | . . . . . . . . . . . . Scanalyzers . | . . . . . . . . . . . . Garrison Access 2 | . . . . . 1 . . . 1 . . Total Hacks 50 | . 8 . 2 . 15 6 7 . 1 5 6 Successful 24 | . 1 . 2 . 9 4 3 . 1 2 2 Failed 26 | . 7 . . . 6 2 4 . . 3 4 Catastrophic 3 | . 1 . . . 2 . . . . . . Database Lockouts . | . . . . . . . . . . . . Manual 21 | . 8 . 1 . 6 2 2 . . . 2 Terminals 44 | . 8 . . . 12 6 7 . . 5 6 Fabricators . | . . . . . . . . . . . . Repair Stations 2 | . . . . . 2 . . . . . . Recycling Units . | . . . . . . . . . . . . Scanalyzers . | . . . . . . . . . . . . Garrison Access 2 | . . . . . 1 . . . 1 . . Terminal Hacks 16 | . 1 . 2 . 4 3 3 . . 2 1 Record 2 | . . . 1 . . . 1 . . . . Robot Schematic 1 | . . . . . . . . . . . 1 Robot Analysis 3 | . 1 . . . 2 . . . . . . Open Door 1 | . . . . . . . . . . 1 . Open DSF 1 | . . . . . . . 1 . . . . Emergency Access Points 1 | . . . . . . 1 . . . . . Terminal Index 1 | . . . . . 1 . . . . . . Unreport Threat 2 | . . . . . 1 . 1 . . . . Garrison Registry 2 | . . . . . . 1 . . . 1 . Patrol Navigation 1 | . . . . . . 1 . . . . . EX-Prototype ID Bank 1 | . . . 1 . . . . . . . . Fabricator Hacks . | . . . . . . . . . . . . Repair Station Hacks 2 | . . . . . 2 . . . . . . Scan Component 1 | . . . . . 1 . . . . . . Repair 1 | . . . . . 1 . . . . . . Recycling Unit Hacks . | . . . . . . . . . . . . Scanalyzer . | . . . . . . . . . . . . Garrison Access Hacks 2 | . . . . . 1 . . . 1 . . Unlock Access 2 | . . . . . 1 . . . 1 . . Unauthorized Hacks 4 | . . . . . 2 1 . . . . 1 Terminals 4 | . . . . . 2 1 . . . . 1 Botnet 3 | . . . . . 1 1 . . . . 1 Operators 1 | . . . . . 1 . . . . . . Fabricators . | . . . . . . . . . . . . Repair Stations . | . . . . . . . . . . . . Recycling Units . | . . . . . . . . . . . . Scanalyzers . | . . . . . . . . . . . . Garrison Access . | . . . . . . . . . . . . Data Cores Recovered . | . . . . . . . . . . . . Used . | . . . . . . . . . . . . Hacking Detections 20 | . 2 . . . 7 3 2 . 1 3 2 Full Trace Events 7 | . 2 . . . . 1 1 . . 1 2 Feedback Events 1 | . 1 . . . . . . . . . . Corruption 1 | . 1 . . . . . . . . . . Feedback Blocked . | . . . . . . . . . . . . Robot Schematics Acquired 1 | . . . . . . . . . . . 1 Robots Built . | . . . . . . . . . . . . Authchips . | . . . . . . . . . . . . Time . | . . . . . . . . . . . . Total Robot Build Rating . | . . . . . . . . . . . . Part Schematics Acquired . | . . . . . . . . . . . . Parts Built . | . . . . . . . . . . . . Authchips . | . . . . . . . . . . . . Time . | . . . . . . . . . . . . Total Part Build Rating . | . . . . . . . . . . . . Parts Repaired 1 | . . . . . 1 . . . . . . Time 26 | . . . . . 26 . . . . . . Parts Recycled . | . . . . . . . . . . . . Recycled Matter . | . . . . . . . . . . . . Retrieved Matter . | . . . . . . . . . . . . Retrieved Components . | . . . . . . . . . . . . Parts Scanalyzed . | . . . . . . . . . . . . Part Schematics Acquired . | . . . . . . . . . . . . Parts Damaged . | . . . . . . . . . . . . Bothacking | -11 -10 -10 -10 -9 -8 -8 -7 -7 -6 -6 -6 ------------ Run | Jun Mat Min Exi Min Mat Gar Fac DSF Fac Gar Fac Used RIF Installer 2 | . . . . . . 1 . . . 1 . Robot Detection 1 | . . . . . . . . . . 1 . Robots Hacked 1 | . . . . . 1 . . . . . . Non-combat 1 | . . . . . 1 . . . . . . Combat . | . . . . . . . . . . . . Robot Hacks Applied 1 | . . . . . 1 . . . . . . parse_system 1 | . . . . . 1 . . . . . . Relay Couplers Released 26 | . . . . . . 16 . . . 10 . Machine Destruction 26 | . . . . . . 16 . . . 10 . Fabnet Peak Effective % . | . . . . . . . . . . . . Robots Rewired 12 | . . . . . . 9 . . . 3 . Allies Hacked . | . . . . . . . . . . . . Hacks Repelled . | . . . . . . . . . . . . Allies | -11 -10 -10 -10 -9 -8 -8 -7 -7 -6 -6 -6 -------- Run | Jun Mat Min Exi Min Mat Gar Fac DSF Fac Gar Fac Total Allies 12 | . . . . . . 9 . . . 3 . Largest Group 6 | . . . . . . 6 5 5 2 2 2 Highest-Rated Group 192 | . . . . . . 192 168 168 64 84 84 Highest-Rated Ally 46 | . . . . . . 40 40 40 40 46 46 Total Orders . | . . . . . . . . . . . . Ally Attacks 74 | . . . . . . 15 . 34 . 25 . Total Damage 1892 | . . . . . . 374 . 863 . 655 . Kills 15 | . . . . . . 4 . 7 . 4 . Allies Corrupted 3 | . . . . . . . . 1 . . 2 Allies Melted 1 | . . . . . . . . . . 1 . Intel | -11 -10 -10 -10 -9 -8 -8 -7 -7 -6 -6 -6 ------- Run | Jun Mat Min Exi Min Mat Gar Fac DSF Fac Gar Fac Robot Analysis Total 3 | . 1 . . . 2 . . . . . . Derelict Logs Recovered . | . . . . . . . . . . . . Drone Launches . | . . . . . . . . . . . . Drone Recoveries . | . . . . . . . . . . . . Exploration | -11 -10 -10 -10 -9 -8 -8 -7 -7 -6 -6 -6 ------------- Run | Jun Mat Min Exi Min Mat Gar Fac DSF Fac Gar Fac Turns Passed 5137 | 78 415 231 277 34 598 1438 79 179 12 1321 475 Spaces Moved 3046 | 42 213 133 228 13 445 831 62 111 10 683 275 Core 50 | 11 . . . . 30 6 . . . . 3 Treads . | . . . . . . . . . . . . Legs 1894 | 31 213 133 228 13 31 362 . . . 611 272 Wheels . | . . . . . . . . . . . . Hover 1102 | . . . . . 384 463 62 111 10 72 . Flight . | . . . . . . . . . . . . Fastest Speed 38 | 50 120 120 120 120 38 38 112 112 112 112 120 Average Speed 107 | 101 120 120 120 120 56 98 112 112 112 134 126 Slowest Speed 350 | 120 120 120 120 120 300 300 112 112 112 260 350 Overloaded Moves . | . . . . . . . . . . . . Propulsion Burnouts . | . . . . . . . . . . . . Robots Hopped . | . . . . . . . . . . . . Cave-ins Triggered . | . . . . . . . . . . . . Exploration Rate (%) 34 | 4 35 31 59 8 37 72 2 76 1 80 8 Regions Visited 11 Branch Regions 3 Pre-discovered Areas 2 | . . . 1 1 . . . . . . . Known Exits Taken 3 | . . . . . 1 . 1 . 1 . . Unknown Exits Taken 5 | 1 1 1 1 1 . . . . . . . Scrap Searched . | . . . . . . . . . . . . Spaces Dug 1 | . . . . . . . . . . 1 . Terrain Destroyed 169 | . . . . . . 74 . 1 . 78 16 Melee . | . . . . . . . . . . . . Projectile 8 | . . . . . . . . 1 . 7 . AOE 160 | . . . . . . 74 . . . 71 15 Terrain Rammed . | . . . . . . . . . . . . Walls Destroyed . | . . . . . . . . . . . . Machines Disabled . | . . . . . . . . . . . . Actions | -11 -10 -10 -10 -9 -8 -8 -7 -7 -6 -6 -6 --------- Run | Jun Mat Min Exi Min Mat Gar Fac DSF Fac Gar Fac Total 4287 | 65 289 167 233 19 693 1313 71 143 10 934 350 Wait 436 | 2 15 5 . . 110 216 6 10 1 60 11 Move 3033 | 41 212 132 227 12 444 829 61 110 9 681 275 Hop . | . . . . . . . . . . . . Pick Up 132 | 9 11 4 2 . 31 24 1 5 . 37 8 Fast Attach . | . . . . . . . . . . . . Attach 85 | 7 3 1 1 1 15 16 2 2 . 31 6 Detach . | . . . . . . . . . . . . Swap 18 | . 2 1 . . 5 3 1 . . 1 5 Drop 66 | . 3 3 3 . 18 14 . 4 . 13 8 Fire 360 | 6 43 21 . 6 55 103 . 12 . 88 26 Melee 1 | . . . . . 1 . . . . . . Ram 1 | . . . . . 1 . . . . . . Kick 1 | . . . . . . . . . . 1 . Crush . | . . . . . . . . . . . . Escape Stasis 33 | . . . . . . 27 . . . 6 . Rewire 97 | . . . . . . 81 . . . 16 . Trap 24 | . . . . . 13 . . . . . 11 Miscellaneous . | . . . . . . . . . . . . Route ------- -11/Junkyard -10/Materials -10/Mines -10/Exiles -9/Mines -8/Materials -8/Garrison (discovered 3 exits: *Fac x3) -7/Factory (discovered 2 exits: [*Low] / DSF) -7/DSF -6/Factory -6/Garrison (discovered 3 exits: *Fac x3) -6/Factory History --------- Turn | Location | Event 12 | -11/Junkyard | Discovered new exit (range 16) 79 | -11/Junkyard | Entered Materials 326 | -10/Materials | Build established: Mutant 474 | -10/Materials | Discovered new exit (range 16) 494 | -10/Materials | Entered Mines 703 | -10/Mines | Received a Rocket Launcher from a helpful Derelict 719 | -10/Mines | Deemed a non-threat by the Exiles lab entrance 720 | -10/Mines | Discovered new exit (range 5) 725 | -10/Mines | Entered Exiles 758 | -10/Exiles | Met 8R-AWN 776 | -10/Exiles | Met EX-HEX 809 | -10/Exiles | Met EX-BIN 816 | -10/Exiles | Build established: Scavenger-Mutant 823 | -10/Exiles | Aligned with FarCom system 824 | -10/Exiles | Given EX-Vault access code 851 | -10/Exiles | Opened EX-Vault 863 | -10/Exiles | Found YOLO Cannon 886 | -10/Exiles | Warned to stay clear of 0b10 Research branches 921 | -10/Exiles | Met EX-DEC 927 | -10/Exiles | Learned location of Zion (-7) 987 | -10/Exiles | Discovered new exit (range 14) 1002 | -10/Exiles | Left Exiles lab with YOLO Cannon 1002 | -10/Exiles | Entered Mines 1020 | -9/Mines | Discovered new exit (range 11) 1026 | -9/Mines | Learned location of Storage (-8) 1036 | -9/Mines | Entered Materials 1036 | -8/Materials | Evolved 4 slots: Propulsion x2, Utility x2 1074 | -8/Materials | Repaired Lgt. Cannon 1325 | -8/Materials | Lost 3 parts (1p2w) 1616 | -8/Materials | Garrison activated, responded to threat 1633 | -8/Materials | Identified exit to Garrison 1634 | -8/Materials | Entered Garrison 1738 | -8/Garrison | Triggered checkpoint 1826 | -8/Garrison | Garrison Relay disabled 1896 | -8/Garrison | Triggered checkpoint 1923 | -8/Garrison | Triggered checkpoint 1937 | -8/Garrison | Core integrity fell below 50% 1989 | -8/Garrison | Lost 3 parts (3n) 2188 | -8/Garrison | Discovered new exit (range 5) 2226 | -8/Garrison | Triggered checkpoint 2254 | -8/Garrison | Garrison Relay disabled 2264 | -8/Garrison | Build established: Scavenger-Skirmisher 2425 | -8/Garrison | Discovered new exit (range 8) 2498 | -8/Garrison | Garrison Relay disabled 2504 | -8/Garrison | Triggered checkpoint 2602 | -8/Garrison | Triggered checkpoint 2618 | -8/Garrison | Discovered new exit (range 24) 2618 | -8/Garrison | Discovered new exit (range 55) 2618 | -8/Garrison | Discovered new exit (range 74) 2654 | -8/Garrison | Core integrity fell below 20% 2676 | -8/Garrison | Garrison Relay disabled 2682 | -8/Garrison | Build established: Scavenger-Mutant 2774 | -8/Garrison | Triggered checkpoint 2783 | -8/Garrison | Triggered checkpoint 2830 | -8/Garrison | Installed Relay Interface Framework 3072 | -8/Garrison | Entered Factory 3072 | -7/Factory | Accompanied by 5 allies 3072 | -7/Factory | Evolved 2 slots: Power x1, Utility x1 3123 | -7/Factory | Discovered new exit (range 11) 3145 | -7/Factory | Identified exit to DSF 3151 | -7/Factory | Entered DSF 3151 | -7/DSF | Accompanied by 5 allies 3181 | -7/DSF | Additional patrols routed to DSF 3228 | -7/DSF | Discovered new exit (range 15) 3313 | -7/DSF | Sterilization system engaged 3330 | -7/DSF | Entered Factory 3330 | -6/Factory | Accompanied by 2 allies 3330 | -6/Factory | Evolved 2 slots: Propulsion x2 3340 | -6/Factory | Identified exit to Garrison 3342 | -6/Factory | Entered Garrison 3342 | -6/Garrison | Accompanied by 2 allies 3448 | -6/Garrison | Build established: Scavenger-Skirmisher 3594 | -6/Garrison | Garrison Relay disabled 3668 | -6/Garrison | Triggered checkpoint 3768 | -6/Garrison | Triggered checkpoint 3772 | -6/Garrison | Build established: Scavenger-Mutant 3775 | -6/Garrison | Triggered checkpoint 3876 | -6/Garrison | Lost 11 parts (2p4n2u3w) 3931 | -6/Garrison | Lost 3 parts (2p1n) 4004 | -6/Garrison | Discovered new exit (range 10) 4140 | -6/Garrison | Triggered checkpoint 4209 | -6/Garrison | Garrison Relay disabled 4237 | -6/Garrison | Discovered new exit (range 10) 4323 | -6/Garrison | Lost 3 parts (1p2w) 4418 | -6/Garrison | Discovered new exit (range 10) 4449 | -6/Garrison | Discovered new exit (range 61) 4449 | -6/Garrison | Discovered new exit (range 7) 4449 | -6/Garrison | Discovered new exit (range 69) 4477 | -6/Garrison | Garrison Relay disabled 4614 | -6/Garrison | Phase Generator disabled 4644 | -6/Garrison | Expanded RIF knowledge: Robot Detection 4663 | -6/Garrison | Entered Factory 4663 | -6/Factory | Accompanied by 2 allies 5013 | -6/Factory | First assault squad dispatched 5101 | -6/Factory | Lost 5 parts (5n) 5104 | -6/Factory | Core integrity fell below 50% 5133 | -6/Factory | Core integrity fell below 20% 5138 | -6/Factory | Destroyed by G-67 Veteran with Field Laser Last Messages --------------- 05132_ Acquired Lgt. Antimatter Reactor. 05132_ U-05 Engineer lays Concrete. 05133_ K-01 Serf cleans the Nuclear Reactor. 05134_ U-05 Engineer lays Concrete. 05134_ R-10 Processor collects Cesium-ion Thruster. 05134_ K-01 Serf cleans the Fusion Modulator. 05135_ U-05 Engineer lays Concrete. 05135_ R-10 Processor collects Lgt. Ion Engine. 05135_ Penetrated by Slug. 05135_ U-05 Engineer lays Concrete. 05135_ U-05 Engineer builds a Wall. 05135_ Slug penetrates G-50 Soldier. 05135_ Focal Shield destroyed. 05135_ U-05 Engineer lays Concrete. 05137_ Acquired 63 matter. 05137_ K-01 Serf cleans the Fusion Modulator. 05137_ K-01 Serf collects debris. 05138_ U-05 Engineer lays Concrete. 05138_ R-10 Processor collects Segregator. 05138_ Lgt. Antimatter Reactor destroyed. Map ----- +----------------------------------------------------+ | # """ """" #???????????????????????????????????? | | # """ """" ##############??????????????????????? | | # """ """" # #??????????????????????? | | # """" # #??????????????????????? | | # # """"""" #??????????????????????? | | #########+#### """"""" #??????????????????????? | | # """"""" #??????????????????????? | | # """"""" #??????????????????????? | | + #??????????????????????? | | # """"""" #??????????????????????? | | # """"""" #??????????????????????? | | #### # """"""" #??????????????????????? | | #??# # """"""" #??????????????????????? | | #??# # #??????????????????????? | | ####+#+########";;;"######?????????????????? | | # #?// !"%/u #?????????????????? | | + # ?/ " gu #?????????????????? | | # """ # /? *%g = *#?????????????????? | | # """ # ? !%%! #?????? ??????????? | | # """ #] ? ###/###########k ????????? | | """ # # ! u=g%== % ????????? | | """ ######### #**%*! R ????????? | | """ ######### """"w/=%g! k""" ???"""""" | | # # """" #%!= """???????"""""" | | # ! # """" ; % """???????"""""" | | # # # """" # !@ ! ???"""""" | | # # """" # """" #]/% =%* ???"""""" | | # # """" #?""""?# Rk= ???"""""" | | # # """" #? ??# ?????????? | | # # """" #??##??# ?????????? | | # ** # """" #??????#gg g ??????????? | | # ^ %^# """" #??????# ??????????? | | # [! # #??????# | ###+#??????????? | | # # """" ######## #??????????????? | | # # """" # /! !] """ #??????????????? | | # # """" # / ! """ #??"""?????????? | | # # """" # h """ +??"""?????????? | | # # """" + b k #??"""?????????? | | # # """" # #??????????????? | | # # # ########????""????????? | | # ######### """ """k #???????????""????????? | | # """ """ h #???????????""????????? | | + """ """ #????????????T????????? | | # #???????????""????????? | | # #???????????""????????? | | # #???????????""????????? | | ################+##### #?????????????????????? | | #????????????????????? #?????????????????????? | | #????????????????????? #?????????????????????? | | #?????????????"""?????? ? #?????????????????????? | +----------------------------------------------------+ Best States ------------- Heat Dissipation 83 Energy Generation 37 Energy Capacity 340 Matter Stores 442 Matter Capacity 450 Sight Range 16 Terrain Scan Range 16 Terrain Scan Density 10 Resistance: KI 20 Phase Shifting 10 Evasion (%) 65 Offensive Hacking 10 Authchip Count 1 Item Schematics ----------------- None Robot Schematics ------------------ H-55 Commando | -6/Factory | Hacked Fabricated ------------ Nothing Alien Tech Used ----------------- None Achievements -------------- None Challenges ------------ None Game ------ Seed MissileAssemblyNanovents Manual? 0 Play Time 00:54:59 Cumulative 135.8 hours Start 2023.07.12 @ 04:03:27 End 2023.07.12 @ 04:57:45 Sessions 1 Manual Loads 0 Difficulty Rogue Special Mode None Game No. 126 Rogue 126 Adventurer 0 Explorer 0 Win Type - Total 1 Types 1/0/0/0/0/0/0/0/0 Lore% 47 Gallery% 63 Achievement% 51 Wizard Run 0 Options --------- ASCII 0 Keyboard 0 Movement Numpad Keybinds 0 Fullscreen 2 Font 18/Smallcaps Map View 76x50 Tactical HUD 1 Map Filters NONE Filters NONE Steam 1 RUN: 539e9186-d23f-44e1-8f5f-743032591d32